[Event "10th LCC FIDE Open 2018"]
[Site "London"]
[Date "2018.12.15"]
[Round "8"]
[White "Keely, Leo A"]
[Black "Martinez, Ayelen"]
[Result "1-0"]
[ECO "B23"]
[WhiteElo "1964"]
[BlackElo "2185"]
[Annotator "NA"]
[PlyCount "86"]
[EventDate "2018.12.09"]
[EventType "swiss"]
[EventCountry "ENG"]
[SourceTitle "playchess.com"]
[Source "ChessBase"]
[SourceQuality "1"]
[TimeControl "40/5400+30:1800+30"]

1. e4 {[%emt 0:00:00]} c5 {[%emt 0:14:03]} 2. Nc3 {[%emt 0:00:15]} a6 {[%emt 0:00:07]} 3. f4 {[%emt 0:00:21]} b5 {[%emt 0:00:17]} 4. g3 {[%emt 0:00:17]} Bb7 {[%emt 0:00:06]} 5. Bg2 {[%emt 0:00:07]} e6 {[%emt 0:00:22]} 6. d3 {[%emt 0:01:17]} b4 {[%emt 0:00:09]} 7. Nce2 {[%emt 0:01:10]} d5 {[%emt 0:00:07]} 8. exd5 {[%emt 0:01:42]} Bxd5 {[%emt 0:00:12]} 9. Nf3 {[%emt 0:00:07]} Nf6 {[%emt 0:01:12]} 10. O-O {[%emt 0:00:08]} Ra7 {[%emt 0:03:54]} 11. f5 {[%emt 0:00:59]} exf5 {[%emt 0:00:59]} 12. Nf4 {[%emt 0:01:00]} Ba8 {[%emt 0:00:32]} 13. Re1+ {[%emt 0:02:12]} Be7 {[%emt 0:00:34]} 14. a3 {[%emt 0:03:20]} O-O {[%emt 0:06:02]} 15. axb4 {[%emt 0:01:56]} cxb4 {[%emt 0:00:33]} 16. Be3 {[%emt 0:00:47]} Rc7 {[%emt 0:00:05]} 17. Qd2 {[%emt 0:05:39]} Ng4 {[%emt 0:06:00]} 18. d4 {[%emt 0:04:03]} Be4 {[%emt 0:04:30]} 19. c3 {[%emt 0:01:44]} Nd7 {[%emt 0:07:19]} 20. h3 {[%emt 0:03:10]} Ngf6 {[%emt 0:02:19]} 21. Rec1 {[%emt 0:06:26]} Nb6 {[%emt 0:27:43]} 22. Qe2 {[%emt 0:02:58]} Nc4 {[%emt 0:02:43]} 23. Rxa6 {[%emt 0:02:18]} Qc8 {[%emt 0:00:58]} 24. Raa1 {[%emt 0:00:44]} bxc3 {[%emt 0:00:56]} 25. Rxc3 {[%emt 0:01:45]} Bb4 {[%emt 0:01:27]} 26. Rcc1 {[%emt 0:00:37]} Re8 {[%emt 0:00:58]} 27. Ne5 {[%emt 0:02:02]} Nxe5 {[%emt 0:05:18]} 28. dxe5 {[%emt 0:01:48]} Rxe5 {[%emt 0:00:58]} 29. Bxe4 {[%emt 0:06:31]} Rxe4 {[%emt 0:02:00]} 30. Rxc7 {[%emt 0:01:51]} Qxc7 {[%emt 0:00:04]} 31. Kf2 {[%emt 0:08:03]} g5 {[%emt 0:01:21]} 32. Nh5 {[%emt 0:02:51]} Qc6 {[%emt 0:06:38]} 33. Ra6 {[%emt 0:06:12]} Rxe3 {[%emt 0:00:04]} 34. Nxf6+ {[%emt 0:00:47]} Qxf6 {[%emt 0:01:14]} 35. Rxf6 {[%emt 0:00:13]} Rxe2+ {[%emt 0:00:05]} 36. Kxe2 {[%emt 0:00:06]} g4 {[%emt 0:05:09]} 37. hxg4 {[%emt 0:00:45]} fxg4 {[%emt 0:00:05]} 38. Rf4 {[%emt 0:00:12]} Bd6 {[%emt 0:00:02]} 39. Rxg4+ {[%emt 0:00:09]} Kf8 {[%emt 0:00:03]} 40. Kf3 {[%emt 0:01:38]} Ke7 {[%emt 0:00:03]} 41. Rh4 {[%emt 0:31:35]} Ke6 {[%emt 0:31:09]} 42. Rxh7 {[%emt 0:00:15]} f6 {[%emt 0:00:02]} 43. g4 {[%emt 0:02:37]} Kd5 {[%emt 0:00:49] Ke4+} 1-0

[Event "10th LCC FIDE Open 2018"]
[Site "London"]
[Date "2018.12.15"]
[Round "8"]
[White "Rice, Chris B"]
[Black "Longson, Sarah N"]
[Result "1/2-1/2"]
[ECO "D00"]
[WhiteElo "1963"]
[BlackElo "2137"]
[Annotator "NA"]
[PlyCount "96"]
[EventDate "2018.12.09"]
[EventType "swiss"]
[EventCountry "ENG"]
[SourceTitle "playchess.com"]
[Source "ChessBase"]
[SourceQuality "1"]
[TimeControl "40/5400+30:1800+30"]

1. d4 {[%emt 0:01:22]} d5 {[%emt 0:00:00]} 2. e3 {[%emt 0:00:43]} Nf6 {[%emt 0:00:15]} 3. Bd3 {[%emt 0:02:24]} Nc6 {[%emt 0:02:43]} 4. f4 {[%emt 0:05:29]} Bg4 {[%emt 0:07:43]} 5. Nf3 {[%emt 0:03:31]} e6 {[%emt 0:08:29]} 6. c3 {[%emt 0:05:28]} Ne4 {[%emt 0:02:39]} 7. O-O {[%emt 0:01:47]} Be7 {[%emt 0:12:51]} 8. Qa4 {[%emt 0:04:59]} f6 {[%emt 0:06:40]} 9. Nbd2 {[%emt 0:04:33]} Bxf3 {[%emt 0:16:17]} 10. Nxf3 {[%emt 0:04:34]} O-O {[%emt 0:01:03]} 11. Qc2 {[%emt 0:02:36]} f5 {[%emt 0:01:06]} 12. b4 {[%emt 0:03:02]} Nb8 {[%emt 0:05:12]} 13. a3 {[%emt 0:10:07]} Nd7 {[%emt 0:02:45]} 14. Bb2 {[%emt 0:03:34]} Ndf6 {[%emt 0:04:18]} 15. c4 {[%emt 0:04:24]} dxc4 {[%emt 0:01:21]} 16. Bxc4 {[%emt 0:01:28]} Nd5 {[%emt 0:00:38]} 17. Qe2 {[%emt 0:05:59]} a5 {[%emt 0:03:20]} 18. b5 {[%emt 0:02:33]} a4 {[%emt 0:01:48]} 19. Rfc1 {[%emt 0:02:47]} Bf6 {[%emt 0:02:08]} 20. Rc2 {[%emt 0:01:42]} Nd6 {[%emt 0:03:31]} 21. Ba2 {[%emt 0:11:39]} Ra5 {[%emt 0:01:14]} 22. Rc5 {[%emt 0:05:12]} b6 {[%emt 0:01:59]} 23. Rc6 {[%emt 0:00:44]} Nxb5 {[%emt 0:01:52]} 24. Rac1 {[%emt 0:01:16]} Re8 {[%emt 0:05:52]} 25. Ne5 {[%emt 0:01:29]} Bxe5 {[%emt 0:00:34]} 26. fxe5 {[%emt 0:00:48]} Re7 {[%emt 0:01:36]} 27. Qf3 {[%emt 0:04:06]} Na7 {[%emt 0:00:52]} 28. R6c2 {[%emt 0:00:22]} Rf7 {[%emt 0:01:11]} 29. Bc3 {[%emt 0:01:27]} Ra6 {[%emt 0:02:56]} 30. Bc4 {[%emt 0:01:41]} b5 {[%emt 0:00:08]} 31. Bxd5 {[%emt 0:00:24]} Qxd5 {[%emt 0:00:06]} 32. Qxd5 {[%emt 0:00:16]} exd5 {[%emt 0:00:03]} 33. Bd2 {[%emt 0:00:59]} c6 {[%emt 0:00:43]} 34. Kf2 {[%emt 0:00:55]} Re7 {[%emt 0:01:08]} 35. Bb4 {[%emt 0:01:10]} Re6 {[%emt 0:00:37]} 36. Kf3 {[%emt 0:00:35]} Kf7 {[%emt 0:00:29]} 37. Kf4 {[%emt 0:00:11]} g6 {[%emt 0:00:30]} 38. Kg5 {[%emt 0:00:19]} Nc8 {[%emt 0:00:48]} 39. Bc5 {[%emt 0:00:28]} h5 {[%emt 0:00:50]} 40. h3 {[%emt 0:00:27]} Nb6 {[%emt 0:00:22]} 41. Bxb6 {[%emt 0:31:39]} Rxb6 {[%emt 0:30:29]} 42. g4 {[%emt 0:00:00]} hxg4 {[%emt 0:00:00]} 43. hxg4 {[%emt 0:00:00]} fxg4 {[%emt 0:00:00]} 44. Kxg4 {[%emt 0:00:00]} b4 {[%emt 0:00:00]} 45. axb4 {[%emt 0:00:00]} Rxb4 {[%emt 0:00:00]} 46. Rf1+ {[%emt 0:00:00]} Kg7 {[%emt 0:00:00]} 47. Kg5 {[%emt 0:00:00]} a3 {[%emt 0:00:00]} 48. Rcf2 {[%emt 0:00:00]} Rb7 {[%emt 0:00:00]} 1/2-1/2

[Event "10th LCC FIDE Open 2018"]
[Site "London"]
[Date "2018.12.15"]
[Round "8"]
[White "Edwards, Simon R"]
[Black "Englisch, Colya"]
[Result "0-1"]
[ECO "B07"]
[WhiteElo "1931"]
[BlackElo "2105"]
[Annotator "NA"]
[PlyCount "64"]
[EventDate "2018.12.09"]
[EventType "swiss"]
[EventCountry "ENG"]
[SourceTitle "playchess.com"]
[Source "ChessBase"]
[SourceQuality "1"]
[TimeControl "40/5400+30:1800+30"]

1. e4 {[%emt 0:10:22]} d6 {[%emt 0:00:00]} 2. d4 {[%emt 0:00:17]} Nf6 {[%emt 0:00:00]} 3. Nc3 {[%emt 0:00:05]} g6 {[%emt 0:00:00]} 4. Bg5 {[%emt 0:01:09]} Bg7 {[%emt 0:00:00]} 5. e5 {[%emt 0:00:23]} Nfd7 {[%emt 0:00:32]} 6. f4 {[%emt 0:00:36]} Nc6 {[%emt 0:24:03]} 7. Qd2 {[%emt 0:10:51]} O-O {[%emt 0:02:51]} 8. O-O-O {[%emt 0:02:21]} f6 {[%emt 0:05:34]} 9. exf6 {[%emt 0:00:11]} exf6 {[%emt 0:00:13]} 10. Bh4 {[%emt 0:00:04]} Nb6 {[%emt 0:03:17]} 11. h3 {[%emt 0:02:36]} Qe8 {[%emt 0:03:51]} 12. g4 {[%emt 0:05:38]} Qf7 {[%emt 0:06:10]} 13. Bg2 {[%emt 0:06:45]} f5 {[%emt 0:06:05]} 14. gxf5 {[%emt 0:06:20]} Bxf5 {[%emt 0:01:30]} 15. Nge2 {[%emt 0:01:03]} Nb4 {[%emt 0:10:32]} 16. Ne4 {[%emt 0:04:07]} a5 {[%emt 0:06:17]} 17. b3 {[%emt 0:02:13]} Nxa2+ {[%emt 0:02:20]} 18. Kb2 {[%emt 0:00:31]} Nb4 {[%emt 0:03:11]} 19. Ng5 {[%emt 0:01:27]} Qd7 {[%emt 0:00:51]} 20. Be4 {[%emt 0:01:01]} Bxe4 {[%emt 0:07:20]} 21. Nxe4 {[%emt 0:00:06]} Qb5 {[%emt 0:05:27]} 22. Rb1 {[%emt 0:03:53]} a4 {[%emt 0:03:34]} 23. c4 {[%emt 0:05:34]} Qa5 {[%emt 0:01:07]} 24. Ra1 {[%emt 0:00:57]} a3+ {[%emt 0:03:01]} 25. Kc1 {[%emt 0:00:48]} a2 {[%emt 0:01:57]} 26. Kd1 {[%emt 0:00:17]} Qf5 {[%emt 0:02:10]} 27. N4c3 {[%emt 0:03:08]} Bh6 {[%emt 0:00:32]} 28. Bg3 {[%emt 0:01:43]} Rfe8 {[%emt 0:00:23]} 29. Nc1 {[%emt 0:00:59]} Qh5+ {[%emt 0:00:28]} 30. N3e2 {[%emt 0:00:24]} Qf3 {[%emt 0:00:35]} 31. Re1 {[%emt 0:01:21]} c5 {[%emt 0:00:16]} 32. h4 {[%emt 0:01:35]} Bg7 {[%emt 0:00:17]} 0-1

[Event "10th LCC FIDE Open 2018"]
[Site "London"]
[Date "2018.12.16"]
[Round "9"]
[White "Piesik, Piotr"]
[Black "Wadsworth, Matthew J"]
[Result "1-0"]
[ECO "A07"]
[WhiteElo "2404"]
[BlackElo "2364"]
[Annotator "NA"]
[PlyCount "73"]
[EventDate "2018.12.09"]
[EventType "swiss"]
[EventCountry "ENG"]
[SourceTitle "playchess.com"]
[Source "ChessBase"]
[SourceQuality "1"]
[TimeControl "40/5400+30:1800+30"]

1. Nf3 {[%emt 0:01:43]} Nf6 {[%emt 0:00:04]} 2. g3 {[%emt 0:00:17]} d5 {[%emt 0:00:12]} 3. Bg2 {[%emt 0:00:05]} c6 {[%emt 0:00:14]} 4. O-O {[%emt 0:00:06]} Bg4 {[%emt 0:00:19]} 5. d3 {[%emt 0:00:22]} Nbd7 {[%emt 0:00:36]} 6. Nbd2 {[%emt 0:00:19]} e6 {[%emt 0:00:35]} 7. e4 {[%emt 0:00:50]} Be7 {[%emt 0:00:27]} 8. h3 {[%emt 0:01:02]} Bh5 {[%emt 0:00:32]} 9. Qe2 {[%emt 0:05:36]} O-O {[%emt 0:01:25]} 10. a4 {[%emt 0:04:52]} a5 {[%emt 0:01:25]} 11. Nb3 {[%emt 0:07:16]} Nc5 {[%emt 0:06:55]} 12. Nxc5 {[%emt 0:00:19]} Bxc5 {[%emt 0:00:01]} 13. Bg5 {[%emt 0:02:21]} h6 {[%emt 0:01:58]} 14. Bf4 {[%emt 0:00:31]} Qb6 {[%emt 0:10:15]} 15. g4 {[%emt 0:03:07]} Bg6 {[%emt 0:01:29]} 16. Ne5 {[%emt 0:00:15]} dxe4 {[%emt 0:06:05]} 17. dxe4 {[%emt 0:02:48]} Rad8 {[%emt 0:01:04]} 18. c3 {[%emt 0:05:00]} Qb3 {[%emt 0:04:17]} 19. Rfe1 {[%emt 0:03:09]} Nd7 {[%emt 0:06:17]} 20. Nc4 {[%emt 0:00:58]} b6 {[%emt 0:00:44]} 21. Bc7 {[%emt 0:02:16]} Ra8 {[%emt 0:10:04]} 22. Red1 {[%emt 0:02:20]} Nf6 {[%emt 0:01:04]} 23. Bxb6 {[%emt 0:00:14]} Be7 {[%emt 0:02:50]} 24. Bc7 {[%emt 0:04:55]} Qb7 {[%emt 0:02:45]} 25. Bd6 {[%emt 0:02:04]} Bxd6 {[%emt 0:05:50]} 26. Rxd6 {[%emt 0:00:42]} Rfb8 {[%emt 0:01:13]} 27. f4 {[%emt 0:03:46]} Qa7+ {[%emt 0:01:23]} 28. Kh1 {[%emt 0:00:08]} Qc5 {[%emt 0:00:31]} 29. Rad1 {[%emt 0:01:06]} Ne8 {[%emt 0:02:00]} 30. R6d4 {[%emt 0:00:47]} f6 {[%emt 0:03:44]} 31. e5 {[%emt 0:02:08]} Kh7 {[%emt 0:01:41]} 32. exf6 {[%emt 0:04:55]} Nxf6 {[%emt 0:00:05]} 33. Qxe6 {[%emt 0:00:56]} Bc2 {[%emt 0:01:52]} 34. R1d2 {[%emt 0:00:25]} Bxa4 {[%emt 0:00:10]} 35. Ne5 {[%emt 0:00:32]} Bb3 {[%emt 0:00:45]} 36. Qf5+ {[%emt 0:02:07]} Kg8 {[%emt 0:00:07]} 37. Bxc6 {[%emt 0:00:34]} 1-0

[Event "10th LCC FIDE Open 2018"]
[Site "London"]
[Date "2018.12.16"]
[Round "9"]
[White "Eggleston, David J"]
[Black "Mihalik, Agoston"]
[Result "1-0"]
[ECO "B81"]
[WhiteElo "2397"]
[BlackElo "2220"]
[Annotator "NA"]
[PlyCount "209"]
[EventDate "2018.12.09"]
[EventType "swiss"]
[EventCountry "ENG"]
[SourceTitle "playchess.com"]
[Source "ChessBase"]
[SourceQuality "1"]
[TimeControl "40/5400+30:1800+30"]

1. e4 {[%emt 0:00:00]} c5 {[%emt 0:00:00]} 2. Nf3 {[%emt 0:00:00]} d6 {[%emt 0:00:00]} 3. d4 {[%emt 0:00:00]} cxd4 {[%emt 0:00:00]} 4. Nxd4 {[%emt 0:00:00]} Nf6 {[%emt 0:00:00]} 5. Nc3 {[%emt 0:00:00]} a6 {[%emt 0:00:00]} 6. h3 {[%emt 0:00:12]} e6 {[%emt 0:00:00]} 7. g4 {[%emt 0:00:04]} Be7 {[%emt 0:00:01] B81: Sicilian Scheveningen: Keres Attack} (7... h6 8. Bg2 g5 9. Be3 Nbd7 10. Qe2 Ne5 11. O-O-O Nfd7 12. h4 Rg8 13. hxg5 hxg5 14. Kb1 b5 15. f4 gxf4 16. Bxf4 Bb7 {½-½ (56) Karjakin,S (2773)-Mamedyarov,S (2801) Saint Louis 2018}) 8. g5 {[%emt 0:00:24]} Nfd7 {[%emt 0:00:04]} 9. h4 {[%emt 0:00:06]} b5 {[%emt 0:00:03]} 10. a3 {[%emt 0:00:45]} Bb7 {[%emt 0:00:08]} 11. Be3 {[%emt 0:00:26]} Nc6 {[%emt 0:00:24]} 12. Nxc6 {[%emt 0:01:17]} Bxc6 {[%emt 0:00:06]} 13. Qd4 {[%emt 0:00:30]} O-O {[%emt 0:00:38]} 14. O-O-O {[%emt 0:00:55]} Rb8 {[%emt 0:03:13]} 15. h5 {[%emt 0:01:51]} a5 {[%emt 0:18:47]} 16. h6 {[%emt 0:31:35]} e5 {[%emt 0:02:02]} 17. Qd2 {[%emt 0:04:05]} g6 {[%emt 0:00:30]} 18. Nd5 {[%emt 0:01:45]} Bxd5 {[%emt 0:03:04] [#]} 19. Qxd5 $146 {[%emt 0:00:05]} ({Predecessor:} 19. exd5) 19... b4 {[%emt 0:09:15]} 20. axb4 {[%emt 0:08:17]} axb4 {[%emt 0:13:12]} 21. Rg1 {[%emt 0:00:37]} Qc7 {[%emt 0:05:45]} 22. Bc4 {[%emt 0:05:57]} Ra8 {[%emt 0:04:03]} 23. Bb3 {[%emt 0:04:24]} Ra5 {[%emt 0:06:12]} 24. Qc4 {[%emt 0:01:19]} Qb7 {[%emt 0:02:30]} 25. Kd2 {[%emt 0:11:06]} Nc5 {[%emt 0:01:21]} 26. Bxc5 {[%emt 0:00:20]} Rxc5 {[%emt 0:00:49]} 27. Qd3 {[%emt 0:00:36]} Kh8 {[%emt 0:02:01]} 28. Bd5 {[%emt 0:08:05]} Qb6 {[%emt 0:00:32]} 29. Ra1 {[%emt 0:05:19]} Ra5 {[%emt 0:08:18]} 30. Raf1 {[%emt 0:00:42]} f6 {[%emt 0:02:30]} 31. gxf6 {[%emt 0:01:14]} Bxf6 {[%emt 0:01:35]} 32. Ke2 {[%emt 0:01:16]} Bh4 {[%emt 0:01:25]} 33. Qe3 {[%emt 0:00:55]} Rc5 {[%emt 0:00:26]} 34. Bb3 {[%emt 0:00:36]} Qc7 {[%emt 0:04:46]} 35. Qd2 {[%emt 0:02:18]} Qb7 {[%emt 0:03:02]} 36. Rg4 {[%emt 0:00:27]} Be7 {[%emt 0:00:32]} 37. Qd3 {[%emt 0:00:23]} Qd7 {[%emt 0:02:23]} 38. f3 {[%emt 0:02:06]} Rfc8 {[%emt 0:01:08]} 39. Ra1 {[%emt 0:00:34]} Bf8 {[%emt 0:00:59]} 40. Ra6 {[%emt 0:00:36]} Rd8 {[%emt 0:05:50]} 41. Rb6 {[%emt 0:31:23]} Bxh6 {[%emt 0:03:23]} 42. Rxb4 {[%emt 0:00:00]} Qa7 {[%emt 0:05:25]} 43. Ra4 {[%emt 0:00:00]} Ra5 {[%emt 0:00:30]} 44. Rxa5 {[%emt 0:00:00]} Qxa5 {[%emt 0:00:04]} 45. Rg1 {[%emt 0:00:00]} Bf4 {[%emt 0:01:11]} 46. Rb1 {[%emt 0:00:00]} h5 {[%emt 0:02:12]} 47. Be6 {[%emt 0:00:00]} Qb6 {[%emt 0:01:16]} 48. b4 {[%emt 0:00:00]} Bg3 {[%emt 0:00:30]} 49. Qe3 {[%emt 0:00:00]} Qxe3+ {[%emt 0:01:51]} 50. Kxe3 {[%emt 0:00:00]} Rb8 {[%emt 0:04:52]} 51. b5 {[%emt 0:00:00]} Rb6 {[%emt 0:00:05]} 52. c4 {[%emt 0:00:00]} h4 {[%emt 0:03:25]} 53. Ra1 {[%emt 0:00:00]} Bh2 {[%emt 0:01:24]} 54. Kf2 {[%emt 0:00:00]} Bg3+ {[%emt 0:00:06]} 55. Kg2 {[%emt 0:00:00]} Bf4 {[%emt 0:00:04]} 56. Kh3 {[%emt 0:00:00]} Be3 {[%emt 0:04:28]} 57. Ra7 {[%emt 0:00:00]} Rb8 {[%emt 0:00:27]} 58. Ra6 {[%emt 0:00:00]} Bc5 {[%emt 0:00:51]} 59. Kxh4 {[%emt 0:00:00]} Kg7 {[%emt 0:00:10]} 60. Kg3 {[%emt 0:00:00]} Kf6 {[%emt 0:00:33]} 61. Bd5 {[%emt 0:00:00]} Kg5 {[%emt 0:00:04]} 62. Rc6 {[%emt 0:00:00]} Kh5 {[%emt 0:03:05]} 63. Rc7 {[%emt 0:01:13]} Kg5 {[%emt 0:00:33]} 64. Rf7 {[%emt 0:04:04]} Be3 {[%emt 0:00:25]} 65. Kg2 {[%emt 0:00:33]} Bd4 {[%emt 0:00:34]} 66. Rh7 {[%emt 0:00:25]} Be3 {[%emt 0:00:57]} 67. Kf1 {[%emt 0:00:23]} Bd4 {[%emt 0:00:18]} 68. Ke2 {[%emt 0:00:06]} Bc5 {[%emt 0:00:07]} 69. Kf1 {[%emt 0:03:18]} Bd4 {[%emt 0:00:05]} 70. Kg2 {[%emt 0:00:21]} Bc5 {[%emt 0:00:35]} 71. Rd7 {[%emt 0:00:20]} Kh5 {[%emt 0:00:22]} 72. Bc6 {[%emt 0:01:37]} Kg5 {[%emt 0:00:20]} 73. Kg3 {[%emt 0:01:09]} Bb4 {[%emt 0:00:11]} ({Black should try} 73... Rh8 $1 $11) 74. Rh7 {[%emt 0:00:43]} Bc5 {[%emt 0:00:15]} 75. Kg2 {[%emt 0:00:14]} Bd4 {[%emt 0:00:27]} 76. Rh3 {[%emt 0:00:08]} Kf6 {[%emt 0:01:32]} 77. Rh4 {[%emt 0:01:50]} Be3 {[%emt 0:00:21]} 78. Kf1 {[%emt 0:00:07]} Bg5 {[%emt 0:02:33]} 79. Rg4 {[%emt 0:00:06]} Be3 {[%emt 0:00:42]} 80. Ke2 {[%emt 0:00:14]} Bc1 {[%emt 0:01:12]} (80... Bc5 $14) 81. Kd3 {[%emt 0:00:23]} Ba3 {[%emt 0:01:00]} 82. f4 {[%emt 0:00:18]} exf4 {[%emt 0:01:09]} 83. Rxf4+ {[%emt 0:00:01]} Kg5 {[%emt 0:00:18]} 84. Rf7 {[%emt 0:00:16]} Bc5 {[%emt 0:00:19]} 85. e5 {[%emt 0:03:50]} dxe5 {[%emt 0:00:14]} 86. Ke4 {[%emt 0:00:04]} Bd4 {[%emt 0:00:49]} 87. Kd5 {[%emt 0:00:06]} Kh4 {[%emt 0:00:41]} 88. c5 {[%emt 0:00:06]} g5 {[%emt 0:00:10]} 89. b6 {[%emt 0:00:40]} g4 {[%emt 0:00:57]} 90. b7 {[%emt 0:00:11]} g3 {[%emt 0:00:28]} 91. Kd6 {[%emt 0:00:13]} Kh3 {[%emt 0:02:46]} 92. Rh7+ {[%emt 0:00:31]} Kg4 {[%emt 0:00:04]} 93. Bg2 {[%emt 0:04:24]} e4 {[%emt 0:00:57]} 94. Bxe4 {[%emt 0:00:37]} Kf4 {[%emt 0:00:36]} 95. Bg2 {[%emt 0:00:14]} Be5+ {[%emt 0:00:24]} 96. Kc6 {[%emt 0:00:31]} Re8 {[%emt 0:01:20]} 97. Rh4+ {[%emt 0:00:15]} Ke3 {[%emt 0:00:38]} 98. Re4+ {[%emt 0:00:06]} Kf2 {[%emt 0:00:02]} 99. Rxe5 {[%emt 0:00:12]} Rxe5 {[%emt 0:00:02]} 100. b8=Q {[%emt 0:00:09]} Rxc5+ {[%emt 0:00:06]} 101. Kxc5 {[%emt 0:00:08]} Kxg2 {[%emt 0:00:03]} 102. Kd4 {[%emt 0:01:50]} Kh1 {[%emt 0:00:38]} 103. Ke3 {[%emt 0:00:18]} g2 {[%emt 0:00:09]} 104. Qh8+ {[%emt 0:00:02]} Kg1 {[%emt 0:00:04]} 105. Kf3 {[%emt 0:00:04]} 1-0

[Event "10th LCC FIDE Open 2018"]
[Site "London"]
[Date "2018.12.16"]
[Round "9"]
[White "Lewtak, Damian"]
[Black "Mihajlov, Sebastian"]
[Result "1/2-1/2"]
[ECO "E92"]
[WhiteElo "2393"]
[BlackElo "2358"]
[Annotator "NA"]
[PlyCount "27"]
[EventDate "2018.12.09"]
[EventType "swiss"]
[EventCountry "ENG"]
[SourceTitle "playchess.com"]
[Source "ChessBase"]
[SourceQuality "1"]
[TimeControl "40/5400+30:1800+30"]

1. c4 {[%emt 0:00:00]} Nf6 {[%emt 0:06:32]} 2. Nf3 {[%emt 0:00:00]} g6 {[%emt 0:01:13]} 3. Nc3 {[%emt 0:00:09]} Bg7 {[%emt 0:00:06]} 4. d4 {[%emt 0:00:18]} O-O {[%emt 0:00:08]} 5. e4 {[%emt 0:00:39]} d6 {[%emt 0:00:06]} 6. Be2 {[%emt 0:01:43]} e5 {[%emt 0:00:09]} 7. dxe5 {[%emt 0:00:35]} dxe5 {[%emt 0:00:06]} 8. Qxd8 {[%emt 0:00:10]} Rxd8 {[%emt 0:00:06]} 9. Bg5 {[%emt 0:00:04]} Re8 {[%emt 0:01:14]} 10. Nd5 {[%emt 0:00:31]} Nxd5 {[%emt 0:00:22]} 11. cxd5 {[%emt 0:00:05]} c6 {[%emt 0:00:33]} 12. Bc4 {[%emt 0:00:42]} b5 {[%emt 0:00:55]} 13. Bb3 {[%emt 0:00:39]} Bb7 {[%emt 0:00:17]} 14. Rd1 {[%emt 0:00:39]} 1/2-1/2

[Event "10th LCC FIDE Open 2018"]
[Site "London"]
[Date "2018.12.16"]
[Round "9"]
[White "Bates, Richard A"]
[Black "Brooks, Phil J"]
[Result "1/2-1/2"]
[ECO "D05"]
[WhiteElo "2372"]
[BlackElo "2184"]
[Annotator "NA"]
[PlyCount "141"]
[EventDate "2018.12.09"]
[EventType "swiss"]
[EventCountry "ENG"]
[SourceTitle "playchess.com"]
[Source "ChessBase"]
[SourceQuality "1"]
[TimeControl "40/5400+30:1800+30"]

1. d4 {[%emt 0:00:40]} e6 {[%emt 0:00:00]} 2. Nf3 {[%emt 0:00:23]} d5 {[%emt 0:00:00]} 3. e3 {[%emt 0:01:27]} c5 {[%emt 0:00:42]} 4. b3 {[%emt 0:01:05]} Nc6 {[%emt 0:01:21]} 5. Bd3 {[%emt 0:01:45]} Nf6 {[%emt 0:01:07]} 6. O-O {[%emt 0:00:37]} Bd6 {[%emt 0:00:23]} 7. Bb2 {[%emt 0:00:41]} O-O {[%emt 0:01:20]} 8. Nbd2 {[%emt 0:03:46]} b6 {[%emt 0:00:17]} 9. a3 {[%emt 0:11:45]} Bb7 {[%emt 0:00:32]} 10. Qe2 {[%emt 0:00:08]} Qc7 {[%emt 0:14:34]} 11. dxc5 {[%emt 0:12:51]} bxc5 {[%emt 0:08:48]} 12. e4 {[%emt 0:04:06]} Ne5 {[%emt 0:09:53]} 13. Nxe5 {[%emt 0:12:30]} Bxe5 {[%emt 0:00:07]} 14. Bxe5 {[%emt 0:00:06]} Qxe5 {[%emt 0:00:04]} 15. exd5 {[%emt 0:00:06]} Qxe2 {[%emt 0:00:06]} 16. Bxe2 {[%emt 0:00:07]} Bxd5 {[%emt 0:00:36]} 17. Bf3 {[%emt 0:03:35]} Rad8 {[%emt 0:08:34]} 18. Rfd1 {[%emt 0:07:03]} Rd7 {[%emt 0:10:25]} 19. Kf1 {[%emt 0:12:37]} Rfd8 {[%emt 0:00:45]} 20. Ke1 {[%emt 0:00:05]} Bxf3 {[%emt 0:09:34]} 21. Nxf3 {[%emt 0:00:25]} Ne4 {[%emt 0:00:47]} 22. Rxd7 {[%emt 0:05:53]} Rxd7 {[%emt 0:00:03]} 23. Ne5 {[%emt 0:00:19]} Rd6 {[%emt 0:00:34]} 24. Rd1 {[%emt 0:00:29]} Rxd1+ {[%emt 0:10:24]} 25. Kxd1 {[%emt 0:00:06]} Nxf2+ {[%emt 0:00:04]} 26. Ke2 {[%emt 0:00:17]} Ne4 {[%emt 0:00:09]} 27. Nc6 {[%emt 0:02:33]} a6 {[%emt 0:01:51]} 28. Nb8 {[%emt 0:00:08]} a5 {[%emt 0:02:27]} 29. Nc6 {[%emt 0:00:10]} a4 {[%emt 0:04:32]} 30. bxa4 {[%emt 0:00:04]} Nc3+ {[%emt 0:02:30]} 31. Kd3 {[%emt 0:00:41]} Nxa4 {[%emt 0:00:05]} 32. Kc4 {[%emt 0:00:08]} f6 {[%emt 0:00:55]} 33. Kb5 {[%emt 0:03:53]} Nc3+ {[%emt 0:01:00]} 34. Kxc5 {[%emt 0:00:14]} e5 {[%emt 0:00:10]} 35. Kc4 {[%emt 0:01:41]} Na4 {[%emt 0:02:00]} 36. Kb4 {[%emt 0:01:18]} Nb6 {[%emt 0:00:10]} 37. a4 {[%emt 0:02:39]} e4 {[%emt 0:03:14]} 38. a5 {[%emt 0:01:06]} Nc8 {[%emt 0:06:17]} 39. a6 {[%emt 0:04:54]} Kf7 {[%emt 0:02:16]} 40. a7 {[%emt 0:00:41]} Nb6 {[%emt 0:00:08]} 41. Kb5 {[%emt 0:33:08]} Na8 {[%emt 0:30:08]} 42. Nd4 {[%emt 0:00:00]} g6 {[%emt 0:00:00]} 43. Kc6 {[%emt 0:00:00]} Ke7 {[%emt 0:00:00]} 44. g4 {[%emt 0:00:00]} e3 {[%emt 0:00:00]} 45. c4 {[%emt 0:00:00]} Kd8 {[%emt 0:00:00]} 46. c5 {[%emt 0:00:00]} Kc8 {[%emt 0:00:00]} 47. Ne2 {[%emt 0:00:00]} h5 {[%emt 0:00:00]} 48. gxh5 {[%emt 0:00:00]} gxh5 {[%emt 0:00:00]} 49. h4 {[%emt 0:00:00]} Nc7 {[%emt 0:01:29]} 50. Nd4 {[%emt 0:06:31]} Na8 {[%emt 0:01:06]} 51. Kd6 {[%emt 0:00:28]} Kb7 {[%emt 0:00:14]} 52. Ke6 {[%emt 0:00:52]} Kxa7 {[%emt 0:01:11]} 53. Kxf6 {[%emt 0:00:03]} Kb7 {[%emt 0:00:41]} 54. Kg5 {[%emt 0:00:13]} Nc7 {[%emt 0:00:40]} 55. Kxh5 {[%emt 0:01:06]} Ne6 {[%emt 0:00:07]} 56. Ne2 {[%emt 0:00:47]} Kc6 {[%emt 0:00:46]} 57. Kg6 {[%emt 0:00:35]} Kxc5 {[%emt 0:00:08]} 58. h5 {[%emt 0:00:24]} Kd6 {[%emt 0:01:48]} 59. Kf6 {[%emt 0:00:27]} Nf8 {[%emt 0:01:02]} 60. Ng3 {[%emt 0:00:30]} Kd7 {[%emt 0:00:24]} 61. h6 {[%emt 0:00:29]} Ke8 {[%emt 0:00:14]} 62. Ne2 {[%emt 0:00:27]} Nh7+ {[%emt 0:01:13]} 63. Kg7 {[%emt 0:00:33]} Ng5 {[%emt 0:00:09]} 64. Kg6 {[%emt 0:00:09]} Nf7 {[%emt 0:00:16]} 65. h7 {[%emt 0:00:28]} Kf8 {[%emt 0:00:09]} 66. Kf6 {[%emt 0:00:54]} Nh8 {[%emt 0:00:15]} 67. Nf4 {[%emt 0:01:08]} Nf7 {[%emt 0:00:06]} 68. Ng6+ {[%emt 0:00:39]} Ke8 {[%emt 0:00:06]} 69. Ne5 {[%emt 0:00:37]} Nh8 {[%emt 0:00:28]} 70. Kg7 {[%emt 0:00:29]} e2 {[%emt 0:00:08]} 71. Nf3 {[%emt 0:00:19]} 1/2-1/2